Workbook

Sheet 取扱説明書
B1: 1 | C1: =B1+1 -> 2 | D1: =C1+1 -> 3 | E1: 4 | F1: 5 | G1: 6 | H1: 7 | I1: 8 | J1: 9 | K1: 10 | L1: 11 | M1: 12 | N1: 13 | O1: 14 | P1: 15 | Q1: 16 | R1: 17 | S1: 18 | T1: 19 | U1: 20 | V1: 21 | W1: 22 | X1: 23 | Y1: 24 | AA1: =Y5+1 -> 73 | AB1: =AA1+1 -> 74 | AC1: 75 | AD1: 76 | AE1: 77 | AF1: 78 | AG1: 79 | AH1: 80 | AI1: 81 | AJ1: 82 | AK1: 83 | AL1: 84 | AM1: 85 | AN1: 86 | AO1: 87 | AP1: 88 | AQ1: 89 | AR1: 90 | AS1: 91 | AT1: 92 | AU1: 93 | AV1: 94 | AW1: 95 | AX1: 96 | AZ1: =AX5+1 -> 145 | BA1: =AZ1+1 -> 146 | BB1: 147 | BC1: 148 | BD1: 149 | BE1: 150 | BF1: 151 | BG1: 152 | BH1: 153 | BI1: 154 | BJ1: 155 | BK1: 156 | BL1: 157 | BM1: 158 | BN1: 159 | BO1: 160 | BP1: 161 | BQ1: 162 | BR1: 163 | BS1: 164 | BT1: 165 | BU1: 166 | BV1: 167
B3: =Y1+1 -> 25 | C3: =B3+1 -> 26 | D3: =C3+1 -> 27 | E3: 28 | F3: 29 | G3: 30 | H3: 31 | I3: 32 | J3: 33 | K3: 34 | L3: 35 | M3: 36 | N3: 37 | O3: 38 | P3: 39 | Q3: 40 | R3: 41 | S3: 42 | T3: 43 | U3: 44 | V3: 45 | W3: 46 | X3: 47 | Y3: 48 | AA3: =AX1+1 -> 97 | AB3: =AA3+1 -> 98 | AC3: 99 | AD3: 100 | AE3: 101 | AF3: 102 | AG3: 103 | AH3: 104 | AI3: 105 | AJ3: 106 | AK3: 107 | AL3: 108 | AM3: 109 | AN3: 110 | AO3: 111 | AP3: 112 | AQ3: 113 | AR3: 114 | AS3: 115 | AT3: 116 | AU3: 117 | AV3: 118 | AW3: 119 | AX3: 120 | AZ3: =BV1+1 -> 168 | BA3: =AZ3+1 -> 169 | BB3: 170 | BC3: 171 | BD3: 172 | BE3: 173 | BF3: 174 | BG3: 175 | BH3: 176 | BI3: 177 | BJ3: 178 | BK3: 179 | BL3: 180 | BM3: 181 | BN3: 182 | BO3: 183 | BP3: 184 | BQ3: 185 | BR3: 186 | BS3: 187 | BT3: 188 | BU3: 189 | BV3: 190
B5: =Y3+1 -> 49 | C5: =B5+1 -> 50 | D5: =C5+1 -> 51 | E5: 52 | F5: 53 | G5: 54 | H5: 55 | I5: 56 | J5: 57 | K5: 58 | L5: 59 | M5: 60 | N5: 61 | O5: 62 | P5: 63 | Q5: 64 | R5: 65 | S5: 66 | T5: 67 | U5: 68 | V5: 69 | W5: 70 | X5: 71 | Y5: 72 | AA5: =AX3+1 -> 121 | AB5: =AA5+1 -> 122 | AC5: 123 | AD5: 124 | AE5: 125 | AF5: 126 | AG5: 127 | AH5: 128 | AI5: 129 | AJ5: 130 | AK5: 131 | AL5: 132 | AM5: 133 | AN5: 134 | AO5: 135 | AP5: 136 | AQ5: 137 | AR5: 138 | AS5: 139 | AT5: 140 | AU5: 141 | AV5: 142 | AW5: 143 | AX5: 144 | AZ5: 191 | BB5: =AZ5+1 -> 192 | BD5: =BB5+1 -> 193 | BF5: =BD5+1 -> 194 | BH5: =BF5+1 -> 195 | BJ5: =BH5+1 -> 196 | BL5: =BJ5+1 -> 197 | BN5: =BL5+1 -> 198 | BP5: =BN5+1 -> 199 | BR5: =BP5+1 -> 200 | BT5: Y | BU5: N | BV5: D
AR6: 欠番
B7: フローチャート作成支援 - ©2002-2025 http://www.mansikka.info - | BV7: エクセル方眼紙設定、標準：行高＝18、行幅＝2.38
B8: 図形挿入文字欄
A9: 1 | B9: 準備 | L9: 練習用スペース | AP9: エクセルのマクロを用いたフローチャート作成支援のワークシートです。
A10: 2 | B10: 設計図書の確認 | AP10: 1.概要
A11: 3 | B11: 工程表の作成 | AQ11: (1)#1-#203の下段にある図形やボタンを用いて全ての業界・業種のフローチャートの作成支援をします。
A12: 4 | B12: 施工計画書の作成 | AQ12: (2)大別して、次の2つの作成支援を行います。
A13: 5 | AR13: ア.自動で作成する
A14: 6 | AR14: イ.一つひとつ作成する。
A15: 7 | AQ15: (3)Excel2016で作成、動作確認しています。マクロの一部、または全部が動かない場合があります。ご了承ください。
A16: 8 | AP16: 2.使い方
A17: 9 | AQ17: (1)自動で作成する方法
A18: 10 | B18: 73 準備 | AR18: 操作手順は、「何を(文字列)」→「何したい？(動作ボタン)」→「どこに(セル番地)」になります。
A19: 11 | B19: 74 設計図書の確認 | AR19: ア.左側の図形挿入文字欄の文字列のB列を数行ドラッグします。
A20: 12 | B20: 75 工程表の作成 | AR20: イ.上の段の#191「自動1」をクリックします。
A21: 13 | B21: 76 施工計画書の作成 | AR21: ウ.メッセージが現れるので練習用スペースの赤い四角(セル番地M11)をマウスでクリックします。
A22: 14 | AR22: エ.フローチャート図が自動生成されます。
A23: 15 | AR23: オ.自動生成したフローチャートは位置を移動したり、後述(2)の手順で他の図形を加除して求める姿に修正します。
A24: 16 | AQ24: (2)一つひとつ作成する方法
A25: 17 | AR25: 貼り付ける場所をクリックしてから、図形を選択すると貼り付きます。文字列を挿入します。
A26: 18 | AR26: ア.既に文字が入力済みですが、画面左側の図形挿入文字欄のB列にフローチャートに必要な文字列を入力します。
A27: 19 | AR27: イ.図形を貼り付けたい場所(練習用スペースの水色の四角(セル番地Z10)をクリックします。
A28: 20 | AR28: ウ.#1-#196までの図形をクリックすると、イ.で指定した場所に横4マス×縦2マス(固定)の図形が貼り付きます。
A29: 21 | AR29: エ.図形への文字挿入は次の手順で挿入します。
A30: 22 | AS30: (ア)文字欄のB列から図形挿入したい文字をクリックする。
A31: 23 | AS31: (イ)前述のウ.で生成した図形をクリックする。
A32: 24 | AS32: (ウ)#193「挿入A」をクリックする。
A33: 25 | AS33: (エ)フローチャートの図形内に指定された文字列が挿入されます。
A34: 26 | AR34: オ.以上のア.からエ.の操作を繰り返してフローチャートを作成します。
A35: 27 | AP35: 3.その他
A36: 28 | AQ36: (1)#191「自動1」の操作は 「2.使い方、(1)自動で作成する方法」の通りです。
A37: 29 | AQ37: (2)#192「自動2」は、#191「自動1」がセルの縦1マスに対して縦2マスで作成します。
A38: 30 | AQ38: (3)#193「挿入A」の使い方は、「2.使い方、(1)自動で作成する方法」の通りです。
A39: 31 | AQ39: (4)#194「挿入B」は、関数式を挿入する場合に用います。図形挿入文字欄の関数式のリンク先が変化するとフローチャート内の
A40: 32 | AQ40: 文字列が変化します。例えば、セル番地B13に「=B10」と入力すると、セルに表示する文字列は「設計図書の確認」が表示
A41: 33 | AQ41: します。#193「挿入A」、#194「挿入B」ともに 「2.使い方、(2)一つひとつ作成する方法」 の手順を踏むと見た目は同じ
A42: 34 | AQ42: 表示になりますが、セル番地B14の数式=B10の元の文字列「設計図書の確認」を他の文字列に変えると 「挿入B」で生成
A43: 35 | AQ43: した図形内の文字が変化します。
A44: 36 | AQ44: (5)#195「範囲」は、生成したフローチャートを移動・複写・図形の再設定等を行いたい場合にマウスで範囲指定します。
A45: 37 | AQ45: 例えば、矢印の形状を変えたい、フォントを変えたい、色を変えたい、その他の使い方をする時に範囲指定します。
A46: 38 | AQ46: (6)#196「削除」は、(5)の範囲指定した図形と文字列を削除します。セル内の式や文字列は削除しません。
A47: 39 | AQ47: (7)#197「抽出」は、図形内の文字を抽出します。ボタンをクリックするとダイアログボックスが現れるので図形をマウスで囲みます。
A48: 40 | AQ48: 次に書き出す先頭のセル１個をマウス指定します。
A49: 41 | AQ49: (8)#198「画像」は、範囲指定したフローチャートを作業中のブックと同じ場所に日時付きのjpg形式で保存します。
A50: 42 | AQ50: (9)#190「PDF」は、範囲指定したフローチャートを作業中のブックと同じ場所に日時付きファイルでPDF保存します。
A51: 43 | AQ51: (10)#200「コピー」は、現在開いているシートを複写します。
A52: 44 | AQ52: (11)#190「Mansikka」は、B18以降のように図形番号+半角スペース区切りの後に文字列を書き込むと指定図形に文字列を入れます。
A53: 45 | AP53: 4.免責、ほか
A54: 46 | AQ54: (1)次の内容を理解した場合にこのブックの利用許諾の権利を無償で得ます。
A55: 47 | AQ55: (2)著作権はマクロ中にリンク先が記されている場合は、リンク先の組織・個人の所有物になります。
A56: 48 | AQ56: (3)その他の部分は作者Mansikka(info@mansikka.info)が留保します。
A57: 49 | AQ57: (4)不許転載です。
A58: 50 | AQ58: (5)このファイルに係る講習・売買等は禁止です。
A59: 51 | AQ59: (6)このシートを使用することで生じる損害等はご容赦ください。
A60: 52 | AQ60: (7)不具合が生じても修正等の義務は負いません。
A61: 53 | AQ61: (8)エクセルの基本的な操作説明の義務を負いません。
A62: 54 | AQ62: (9)作成したフローチャートは広く共有しましょう。一人が作ったものが何人もの助けになります。
A63: 55 | AQ63: (10)便利だと思ったら3人に勧めてください。ネズミ算で利用者が増え、省力化が図れます。
A64: 56 | AQ64: (11)前向きな感想・励ましのみ、@MansikkaE へお願いします。(喜びます)
A65: 57
A66: 58
A67: 59
A68: 60
A69: 61
A70: 62
A71: 63
A72: 64
A73: 65
A74: 66
A75: 67
A76: 68
A77: 69
A78: 70
A79: 71
A80: 72
A81: 73
A82: 74
A83: 75
A84: 76
A85: 77
A86: 78
A87: 79
A88: 80
A89: 81
A90: 82
A91: 83
A92: 84
A93: 85
A94: 86
A95: 87
A96: 88
A97: 89
A98: 90
A99: 91
A100: 92
A101: 93
A102: 94
A103: 95
A104: 96
A105: 97
A106: 98
A107: 99

Sheet ひな形
B1: 1 | C1: =B1+1 -> 2 | D1: =C1+1 -> 3 | E1: 4 | F1: 5 | G1: 6 | H1: 7 | I1: 8 | J1: 9 | K1: 10 | L1: 11 | M1: 12 | N1: 13 | O1: 14 | P1: 15 | Q1: 16 | R1: 17 | S1: 18 | T1: 19 | U1: 20 | V1: 21 | W1: 22 | X1: 23 | Y1: 24 | AA1: =Y5+1 -> 73 | AB1: =AA1+1 -> 74 | AC1: 75 | AD1: 76 | AE1: 77 | AF1: 78 | AG1: 79 | AH1: 80 | AI1: 81 | AJ1: 82 | AK1: 83 | AL1: 84 | AM1: 85 | AN1: 86 | AO1: 87 | AP1: 88 | AQ1: 89 | AR1: 90 | AS1: 91 | AT1: 92 | AU1: 93 | AV1: 94 | AW1: 95 | AX1: 96 | AZ1: =AX5+1 -> 145 | BA1: =AZ1+1 -> 146 | BB1: 147 | BC1: 148 | BD1: 149 | BE1: 150 | BF1: 151 | BG1: 152 | BH1: 153 | BI1: 154 | BJ1: 155 | BK1: 156 | BL1: 157 | BM1: 158 | BN1: 159 | BO1: 160 | BP1: 161 | BQ1: 162 | BR1: 163 | BS1: 164 | BT1: 165 | BU1: 166 | BV1: 167
B3: =Y1+1 -> 25 | C3: =B3+1 -> 26 | D3: =C3+1 -> 27 | E3: 28 | F3: 29 | G3: 30 | H3: 31 | I3: 32 | J3: 33 | K3: 34 | L3: 35 | M3: 36 | N3: 37 | O3: 38 | P3: 39 | Q3: 40 | R3: 41 | S3: 42 | T3: 43 | U3: 44 | V3: 45 | W3: 46 | X3: 47 | Y3: 48 | AA3: =AX1+1 -> 97 | AB3: =AA3+1 -> 98 | AC3: 99 | AD3: 100 | AE3: 101 | AF3: 102 | AG3: 103 | AH3: 104 | AI3: 105 | AJ3: 106 | AK3: 107 | AL3: 108 | AM3: 109 | AN3: 110 | AO3: 111 | AP3: 112 | AQ3: 113 | AR3: 114 | AS3: 115 | AT3: 116 | AU3: 117 | AV3: 118 | AW3: 119 | AX3: 120 | AZ3: =BV1+1 -> 168 | BA3: =AZ3+1 -> 169 | BB3: 170 | BC3: 171 | BD3: 172 | BE3: 173 | BF3: 174 | BG3: 175 | BH3: 176 | BI3: 177 | BJ3: 178 | BK3: 179 | BL3: 180 | BM3: 181 | BN3: 182 | BO3: 183 | BP3: 184 | BQ3: 185 | BR3: 186 | BS3: 187 | BT3: 188 | BU3: 189 | BV3: 190
B5: =Y3+1 -> 49 | C5: =B5+1 -> 50 | D5: =C5+1 -> 51 | E5: 52 | F5: 53 | G5: 54 | H5: 55 | I5: 56 | J5: 57 | K5: 58 | L5: 59 | M5: 60 | N5: 61 | O5: 62 | P5: 63 | Q5: 64 | R5: 65 | S5: 66 | T5: 67 | U5: 68 | V5: 69 | W5: 70 | X5: 71 | Y5: 72 | AA5: =AX3+1 -> 121 | AB5: =AA5+1 -> 122 | AC5: 123 | AD5: 124 | AE5: 125 | AF5: 126 | AG5: 127 | AH5: 128 | AI5: 129 | AJ5: 130 | AK5: 131 | AL5: 132 | AM5: 133 | AN5: 134 | AO5: 135 | AP5: 136 | AQ5: 137 | AR5: 138 | AS5: 139 | AT5: 140 | AU5: 141 | AV5: 142 | AW5: 143 | AX5: 144 | AZ5: 191 | BB5: =AZ5+1 -> 192 | BD5: =BB5+1 -> 193 | BF5: =BD5+1 -> 194 | BH5: =BF5+1 -> 195 | BJ5: =BH5+1 -> 196 | BL5: =BJ5+1 -> 197 | BN5: =BL5+1 -> 198 | BP5: =BN5+1 -> 199 | BR5: =BP5+1 -> 200 | BT5: Y | BU5: N | BV5: D
AR6: 欠番
B7: フローチャート作成支援 - ©2002-2025 http://www.mansikka.info - | BV7: エクセル方眼紙設定、標準：行高＝18、行幅＝2.38
B8: 図形挿入文字欄
A9: 1
A10: 2
A11: 3
A12: 4
A13: 5
A14: 6
A15: 7
A16: 8
A17: 9
A18: 10
A19: 11
A20: 12
A21: 13
A22: 14
A23: 15
A24: 16
A25: 17
A26: 18
A27: 19
A28: 20
A29: 21
A30: 22
A31: 23
A32: 24
A33: 25
A34: 26
A35: 27
A36: 28
A37: 29
A38: 30
A39: 31
A40: 32
A41: 33
A42: 34
A43: 35
A44: 36
A45: 37
A46: 38
A48: 39
A49: 40
A50: 41
A51: 42
A52: 43
A53: 44
A54: 45
A55: 46
A56: 47
A57: 48
A58: 49
A59: 50
A60: 51
A61: 52
A62: 53
A63: 54
A64: 55
A65: 56
A66: 57
A67: 58
A68: 59
A69: 60
A70: 61
A71: 62
A72: 63
A73: 64
A74: 65
A75: 66
A76: 67
A77: 68
A78: 69
A79: 70
A80: 71
A81: 72
A82: 73
A83: 74
A84: 75
A85: 76
A86: 77
A87: 78
A88: 79
A89: 80
A90: 81
A91: 82
A92: 83
A93: 84
A94: 85
A95: 86
A96: 87
A97: 88
A98: 89
A99: 90
A100: 91
A101: 92
A102: 93
A103: 94
A104: 95
A105: 96
A106: 97
A107: 98
A108: 99

Sheet (参考)監理指針_コンクリート工事
B1: 1 | C1: =B1+1 -> 2 | D1: =C1+1 -> 3 | E1: 4 | F1: 5 | G1: 6 | H1: 7 | I1: 8 | J1: 9 | K1: 10 | L1: 11 | M1: 12 | N1: 13 | O1: 14 | P1: 15 | Q1: 16 | R1: 17 | S1: 18 | T1: 19 | U1: 20 | V1: 21 | W1: 22 | X1: 23 | Y1: 24 | AA1: =Y5+1 -> 73 | AB1: =AA1+1 -> 74 | AC1: 75 | AD1: 76 | AE1: 77 | AF1: 78 | AG1: 79 | AH1: 80 | AI1: 81 | AJ1: 82 | AK1: 83 | AL1: 84 | AM1: 85 | AN1: 86 | AO1: 87 | AP1: 88 | AQ1: 89 | AR1: 90 | AS1: 91 | AT1: 92 | AU1: 93 | AV1: 94 | AW1: 95 | AX1: 96 | AZ1: =AX5+1 -> 145 | BA1: =AZ1+1 -> 146 | BB1: 147 | BC1: 148 | BD1: 149 | BE1: 150 | BF1: 151 | BG1: 152 | BH1: 153 | BI1: 154 | BJ1: 155 | BK1: 156 | BL1: 157 | BM1: 158 | BN1: 159 | BO1: 160 | BP1: 161 | BQ1: 162 | BR1: 163 | BS1: 164 | BT1: 165 | BU1: 166 | BV1: 167
B3: =Y1+1 -> 25 | C3: =B3+1 -> 26 | D3: =C3+1 -> 27 | E3: 28 | F3: 29 | G3: 30 | H3: 31 | I3: 32 | J3: 33 | K3: 34 | L3: 35 | M3: 36 | N3: 37 | O3: 38 | P3: 39 | Q3: 40 | R3: 41 | S3: 42 | T3: 43 | U3: 44 | V3: 45 | W3: 46 | X3: 47 | Y3: 48 | AA3: =AX1+1 -> 97 | AB3: =AA3+1 -> 98 | AC3: 99 | AD3: 100 | AE3: 101 | AF3: 102 | AG3: 103 | AH3: 104 | AI3: 105 | AJ3: 106 | AK3: 107 | AL3: 108 | AM3: 109 | AN3: 110 | AO3: 111 | AP3: 112 | AQ3: 113 | AR3: 114 | AS3: 115 | AT3: 116 | AU3: 117 | AV3: 118 | AW3: 119 | AX3: 120 | AZ3: =BV1+1 -> 168 | BA3: =AZ3+1 -> 169 | BB3: 170 | BC3: 171 | BD3: 172 | BE3: 173 | BF3: 174 | BG3: 175 | BH3: 176 | BI3: 177 | BJ3: 178 | BK3: 179 | BL3: 180 | BM3: 181 | BN3: 182 | BO3: 183 | BP3: 184 | BQ3: 185 | BR3: 186 | BS3: 187 | BT3: 188 | BU3: 189 | BV3: 190
B5: =Y3+1 -> 49 | C5: =B5+1 -> 50 | D5: =C5+1 -> 51 | E5: 52 | F5: 53 | G5: 54 | H5: 55 | I5: 56 | J5: 57 | K5: 58 | L5: 59 | M5: 60 | N5: 61 | O5: 62 | P5: 63 | Q5: 64 | R5: 65 | S5: 66 | T5: 67 | U5: 68 | V5: 69 | W5: 70 | X5: 71 | Y5: 72 | AA5: =AX3+1 -> 121 | AB5: =AA5+1 -> 122 | AC5: 123 | AD5: 124 | AE5: 125 | AF5: 126 | AG5: 127 | AH5: 128 | AI5: 129 | AJ5: 130 | AK5: 131 | AL5: 132 | AM5: 133 | AN5: 134 | AO5: 135 | AP5: 136 | AQ5: 137 | AR5: 138 | AS5: 139 | AT5: 140 | AU5: 141 | AV5: 142 | AW5: 143 | AX5: 144 | AZ5: 191 | BB5: =AZ5+1 -> 192 | BD5: =BB5+1 -> 193 | BF5: =BD5+1 -> 194 | BH5: =BF5+1 -> 195 | BJ5: =BH5+1 -> 196 | BL5: =BJ5+1 -> 197 | BN5: =BL5+1 -> 198 | BP5: =BN5+1 -> 199 | BR5: =BP5+1 -> 200 | BT5: Y | BU5: N | BV5: D
AR6: 欠番
B7: フローチャート作成支援 - ©2002-2025 http://www.mansikka.info - | BV7: エクセル方眼紙設定、標準：行高＝18、行幅＝2.38
B8: 図形挿入文字欄
A9: 1 | B9: 準備 | M9: 【図６．１．１ コンクリート工事の作業の流れ(普通コンクリート)】 | BV9: 【図６．１．１ コンクリート工事の作業の流れ(普通コンクリート)】
A10: 2 | B10: 設計図書の確認 | M10: 『建築工事監理指針 令和4年版』より
A11: 3 | B11: 工程表の作成
A12: 4 | B12: 施工計画書の作成
A13: 5 | B13: 型枠の組立
A14: 6 | B14: 施工図との照合
A15: 7 | B15: 緊張材にコーンを使用する箇所
A16: 8 | B16: 工場の決定
A17: 9 | B17: Ⅰ類コンクリート
A18: 10 | B18: Ⅱ類コンクリート
A19: 11 | B19: 製造設備、品質管理の状態
A20: 12 | B20: 運搬時間
A21: 13 | B21: 計画調合の検討
A22: 14 | B22: セメント、骨材、混和材量、水
A23: 15 | B23: 調合管理強度
A24: 16 | B24: 水セメント比
A25: 17 | B25: 計画スランプ
A26: 18 | B26: 試し練り (Ⅰ類コンクリート以外)
A27: 19 | B27: 調合強度
A28: 20 | B28: 計画スランプ
A29: 21 | B29: 計画空気量
A30: 22 | B30: 計画調合の決定
A31: 23 | B31: コンクリート製造
A32: 24 | B32: 運搬･荷卸し･製品検査
A33: 25 | B33: 試験用試料の採取
A34: 26 | B34: 構造体コンクリート強度の確認
A35: 27 | B35: 強度試験
A36: 28 | B36: 強度試験の判定
A37: 29 | B37: 不合格のときの処置
A38: 30 | B38: 工事現場内運搬(圧送)
A39: 31 | B39: コンクリートポンプの圧送能力
A40: 32 | B40: 輸送管の配置
A41: 33 | B41: 輸送管支持方法
A42: 34 | B42: 圧送が中断した時の処置
A43: 35 | B43: 打込み・締固め
A44: 36 | B44: 打込み区画
A45: 37 | B45: 打込み順序
A46: 38 | B46: 作業動線
B47: 作業員の配置
A48: 39 | B48: タンピング
A49: 40 | B49: コンクリートこて仕上げ
A50: 41 | B50: 養生
A51: 42 | B51: 打込み後の養生
B52: 型枠の取外し
A53: 43 | B53: 材齢
A54: 44 | B54: 圧縮強度と構造計算
A55: 45 | B55: コンクリートの補修
A56: 46 | B56: 補修方法
A57: 47 | B57: 型枠緊張材の頭処理
A58: 48
A59: 49 | B59: 品質の管理
A60: 50 | B60: スランプ
A61: 51 | B61: 空気量
A62: 52 | B62: 塩化物量及びアルカリ総量
A63: 53 | B63: 調合管理強度の管理試験
A64: 54 | B64: 調合管理強度の判定
A65: 55 | B65: 計画調合の変更
A66: 56
A67: 57
A68: 58
A69: 59
A70: 60
A71: 61
A72: 62
A73: 63
A74: 64
A75: 65
A76: 66
A77: 67
A78: 68
A79: 69
A80: 70
A81: 71
A82: 72
A83: 73
A84: 74
A85: 75
A86: 76
A87: 77
A88: 78
A89: 79
A90: 80
A91: 81
A92: 82
A93: 83
A94: 84
A95: 85
A96: 86
A97: 87
A98: 88
A99: 89
A100: 90
A101: 91
A102: 92
A103: 93
A104: 94
A105: 95
A106: 96
A107: 97
A108: 98
A109: 99

Sheet (参考)一般的なフローチャート
B1: 1 | C1: =B1+1 -> 2 | D1: =C1+1 -> 3 | E1: 4 | F1: 5 | G1: 6 | H1: 7 | I1: 8 | J1: 9 | K1: 10 | L1: 11 | M1: 12 | N1: 13 | O1: 14 | P1: 15 | Q1: 16 | R1: 17 | S1: 18 | T1: 19 | U1: 20 | V1: 21 | W1: 22 | X1: 23 | Y1: 24 | AA1: =Y5+1 -> 73 | AB1: =AA1+1 -> 74 | AC1: 75 | AD1: 76 | AE1: 77 | AF1: 78 | AG1: 79 | AH1: 80 | AI1: 81 | AJ1: 82 | AK1: 83 | AL1: 84 | AM1: 85 | AN1: 86 | AO1: 87 | AP1: 88 | AQ1: 89 | AR1: 90 | AS1: 91 | AT1: 92 | AU1: 93 | AV1: 94 | AW1: 95 | AX1: 96 | AZ1: =AX5+1 -> 145 | BA1: =AZ1+1 -> 146 | BB1: 147 | BC1: 148 | BD1: 149 | BE1: 150 | BF1: 151 | BG1: 152 | BH1: 153 | BI1: 154 | BJ1: 155 | BK1: 156 | BL1: 157 | BM1: 158 | BN1: 159 | BO1: 160 | BP1: 161 | BQ1: 162 | BR1: 163 | BS1: 164 | BT1: 165 | BU1: 166 | BV1: 167
B3: =Y1+1 -> 25 | C3: =B3+1 -> 26 | D3: =C3+1 -> 27 | E3: 28 | F3: 29 | G3: 30 | H3: 31 | I3: 32 | J3: 33 | K3: 34 | L3: 35 | M3: 36 | N3: 37 | O3: 38 | P3: 39 | Q3: 40 | R3: 41 | S3: 42 | T3: 43 | U3: 44 | V3: 45 | W3: 46 | X3: 47 | Y3: 48 | AA3: =AX1+1 -> 97 | AB3: =AA3+1 -> 98 | AC3: 99 | AD3: 100 | AE3: 101 | AF3: 102 | AG3: 103 | AH3: 104 | AI3: 105 | AJ3: 106 | AK3: 107 | AL3: 108 | AM3: 109 | AN3: 110 | AO3: 111 | AP3: 112 | AQ3: 113 | AR3: 114 | AS3: 115 | AT3: 116 | AU3: 117 | AV3: 118 | AW3: 119 | AX3: 120 | AZ3: =BV1+1 -> 168 | BA3: =AZ3+1 -> 169 | BB3: 170 | BC3: 171 | BD3: 172 | BE3: 173 | BF3: 174 | BG3: 175 | BH3: 176 | BI3: 177 | BJ3: 178 | BK3: 179 | BL3: 180 | BM3: 181 | BN3: 182 | BO3: 183 | BP3: 184 | BQ3: 185 | BR3: 186 | BS3: 187 | BT3: 188 | BU3: 189 | BV3: 190
B5: =Y3+1 -> 49 | C5: =B5+1 -> 50 | D5: =C5+1 -> 51 | E5: 52 | F5: 53 | G5: 54 | H5: 55 | I5: 56 | J5: 57 | K5: 58 | L5: 59 | M5: 60 | N5: 61 | O5: 62 | P5: 63 | Q5: 64 | R5: 65 | S5: 66 | T5: 67 | U5: 68 | V5: 69 | W5: 70 | X5: 71 | Y5: 72 | AA5: =AX3+1 -> 121 | AB5: =AA5+1 -> 122 | AC5: 123 | AD5: 124 | AE5: 125 | AF5: 126 | AG5: 127 | AH5: 128 | AI5: 129 | AJ5: 130 | AK5: 131 | AL5: 132 | AM5: 133 | AN5: 134 | AO5: 135 | AP5: 136 | AQ5: 137 | AR5: 138 | AS5: 139 | AT5: 140 | AU5: 141 | AV5: 142 | AW5: 143 | AX5: 144 | AZ5: 191 | BB5: =AZ5+1 -> 192 | BD5: =BB5+1 -> 193 | BF5: =BD5+1 -> 194 | BH5: =BF5+1 -> 195 | BJ5: =BH5+1 -> 196 | BL5: =BJ5+1 -> 197 | BN5: =BL5+1 -> 198 | BP5: =BN5+1 -> 199 | BR5: =BP5+1 -> 200 | BT5: Y | BU5: N | BV5: D
AR6: 欠番
B7: フローチャート作成支援 - ©2002-2025 http://www.mansikka.info - | BV7: エクセル方眼紙設定、標準：行高＝18、行幅＝2.38
B8: 図形挿入文字欄
A9: 1 | B9: 69 処理開始
A10: 2 | B10: 75 処理１
A11: 3 | B11: 75 処理２
A12: 4 | B12: 75 処理３
A13: 5 | B13: 69 処理終了
A14: 6
A15: 7 | B15: 69 処理開始
A16: 8 | B16: 75 処理１
A17: 9 | B17: 63 判断・条件分岐
A18: 10 | B18: 75 処理２
A19: 11 | B19: 75 処理３
A20: 12 | B20: 75 処理４
A21: 13 | B21: 69 処理終了
A22: 14
A23: 15
A24: 16
A25: 17
A26: 18
A27: 19
A28: 20
A29: 21
A30: 22
A31: 23
A32: 24
A33: 25
A34: 26
A35: 27
A36: 28
A37: 29
A38: 30
A39: 31
A40: 32
A41: 33
A42: 34
A43: 35
A44: 36
A45: 37
A46: 38
A48: 39
A49: 40
A50: 41
A51: 42
A53: 43
A54: 44
A55: 45
A56: 46
A57: 47
A58: 48
A59: 49
A60: 50
A61: 51
A62: 52
A63: 53
A64: 54
A65: 55
A66: 56
A67: 57
A68: 58
A69: 59
A70: 60
A71: 61
A72: 62
A73: 63
A74: 64
A75: 65
A76: 66
A77: 67
A78: 68
A79: 69
A80: 70
A81: 71
A82: 72
A83: 73
A84: 74
A85: 75
A86: 76
A87: 77
A88: 78
A89: 79
A90: 80
A91: 81
A92: 82
A93: 83
A94: 84
A95: 85
A96: 86
A97: 87
A98: 88
A99: 89
A100: 90
A101: 91
A102: 92
A103: 93
A104: 94
A105: 95
A106: 96
A107: 97
A108: 98
A109: 99

Sheet (参考)施工計画書_山留工事(SMW工法)
B1: 1 | C1: =B1+1 -> 2 | D1: =C1+1 -> 3 | E1: 4 | F1: 5 | G1: 6 | H1: 7 | I1: 8 | J1: 9 | K1: 10 | L1: 11 | M1: 12 | N1: 13 | O1: 14 | P1: 15 | Q1: 16 | R1: 17 | S1: 18 | T1: 19 | U1: 20 | V1: 21 | W1: 22 | X1: 23 | Y1: 24 | AA1: =Y5+1 -> 73 | AB1: =AA1+1 -> 74 | AC1: 75 | AD1: 76 | AE1: 77 | AF1: 78 | AG1: 79 | AH1: 80 | AI1: 81 | AJ1: 82 | AK1: 83 | AL1: 84 | AM1: 85 | AN1: 86 | AO1: 87 | AP1: 88 | AQ1: 89 | AR1: 90 | AS1: 91 | AT1: 92 | AU1: 93 | AV1: 94 | AW1: 95 | AX1: 96 | AZ1: =AX5+1 -> 145 | BA1: =AZ1+1 -> 146 | BB1: 147 | BC1: 148 | BD1: 149 | BE1: 150 | BF1: 151 | BG1: 152 | BH1: 153 | BI1: 154 | BJ1: 155 | BK1: 156 | BL1: 157 | BM1: 158 | BN1: 159 | BO1: 160 | BP1: 161 | BQ1: 162 | BR1: 163 | BS1: 164 | BT1: 165 | BU1: 166 | BV1: 167
B3: =Y1+1 -> 25 | C3: =B3+1 -> 26 | D3: =C3+1 -> 27 | E3: 28 | F3: 29 | G3: 30 | H3: 31 | I3: 32 | J3: 33 | K3: 34 | L3: 35 | M3: 36 | N3: 37 | O3: 38 | P3: 39 | Q3: 40 | R3: 41 | S3: 42 | T3: 43 | U3: 44 | V3: 45 | W3: 46 | X3: 47 | Y3: 48 | AA3: =AX1+1 -> 97 | AB3: =AA3+1 -> 98 | AC3: 99 | AD3: 100 | AE3: 101 | AF3: 102 | AG3: 103 | AH3: 104 | AI3: 105 | AJ3: 106 | AK3: 107 | AL3: 108 | AM3: 109 | AN3: 110 | AO3: 111 | AP3: 112 | AQ3: 113 | AR3: 114 | AS3: 115 | AT3: 116 | AU3: 117 | AV3: 118 | AW3: 119 | AX3: 120 | AZ3: =BV1+1 -> 168 | BA3: =AZ3+1 -> 169 | BB3: 170 | BC3: 171 | BD3: 172 | BE3: 173 | BF3: 174 | BG3: 175 | BH3: 176 | BI3: 177 | BJ3: 178 | BK3: 179 | BL3: 180 | BM3: 181 | BN3: 182 | BO3: 183 | BP3: 184 | BQ3: 185 | BR3: 186 | BS3: 187 | BT3: 188 | BU3: 189 | BV3: 190
B5: =Y3+1 -> 49 | C5: =B5+1 -> 50 | D5: =C5+1 -> 51 | E5: 52 | F5: 53 | G5: 54 | H5: 55 | I5: 56 | J5: 57 | K5: 58 | L5: 59 | M5: 60 | N5: 61 | O5: 62 | P5: 63 | Q5: 64 | R5: 65 | S5: 66 | T5: 67 | U5: 68 | V5: 69 | W5: 70 | X5: 71 | Y5: 72 | AA5: =AX3+1 -> 121 | AB5: =AA5+1 -> 122 | AC5: 123 | AD5: 124 | AE5: 125 | AF5: 126 | AG5: 127 | AH5: 128 | AI5: 129 | AJ5: 130 | AK5: 131 | AL5: 132 | AM5: 133 | AN5: 134 | AO5: 135 | AP5: 136 | AQ5: 137 | AR5: 138 | AS5: 139 | AT5: 140 | AU5: 141 | AV5: 142 | AW5: 143 | AX5: 144 | AZ5: 191 | BB5: =AZ5+1 -> 192 | BD5: =BB5+1 -> 193 | BF5: =BD5+1 -> 194 | BH5: =BF5+1 -> 195 | BJ5: =BH5+1 -> 196 | BL5: =BJ5+1 -> 197 | BN5: =BL5+1 -> 198 | BP5: =BN5+1 -> 199 | BR5: =BP5+1 -> 200 | BT5: Y | BU5: N | BV5: D
AR6: 欠番
B7: フローチャート作成支援 - ©2002-2025 http://www.mansikka.info - | BV7: エクセル方眼紙設定、標準：行高＝18、行幅＝2.38
B8: 図形挿入文字欄
A9: 1 | B9: 障害物撤去 隣地養生（飛散養生） 作業床造成（敷鉄板等）
A10: 2 | B10: 連続壁壁芯出し
A11: 3 | B11: プラント
A12: 4 | B12: 材料搬入
A13: 5 | B13: 混合攪拌
A14: 6 | B14: セメントミルク注入
A15: 7 | B15: 残土（泥土）処理
A16: 8 | B16: クレーン
A17: 9
A18: 10 | B18: SMW機搬入・組立
A19: 11 | B19: 溝掘り
A20: 12 | B20: ガイド定規設置
A21: 13 | B21: SMW機設置
A22: 14 | B22: 削孔混練
A23: 15 | B23: ターニング
A24: 16 | B24: 引抜・攪拌
A25: 17 | B25: 削孔完了
A26: 18 | B26: SMW機移動
A27: 19 | B27: エレメントの完了
A28: 20 | B28: 杭芯・垂直性・方向 天端高
A29: 21
A30: 22 | B30: 地盤の安定性 隣接物との離れ 柱状図・施工図
A31: 23 | B31: 泥土飛散・流出養生
A32: 24 | B32: 連続壁壁芯・ピッチ
A33: 25 | B33: 連続壁壁芯・方向
A34: 26
A35: 27 | B35: 錘の垂直性 セメントミルクの配合 セメントミルクの注入量
A36: 28 | B36: 削孔深度
A37: 29 | B37: 地盤の安定性
A38: 30
A39: 31
A40: 32
A41: 33
A42: 34
A43: 35
A44: 36
A45: 37
A46: 38
A48: 39
A49: 40
A50: 41
A51: 42
A53: 43
A54: 44
A55: 45
A56: 46
A57: 47
A58: 48
A59: 49
A60: 50
A61: 51
A62: 52
A63: 53
A64: 54
A65: 55
A66: 56
A67: 57
A68: 58
A69: 59
A70: 60
A71: 61
A72: 62
A73: 63
A74: 64
A75: 65
A76: 66
A77: 67
A78: 68
A79: 69
A80: 70
A81: 71
A82: 72
A83: 73
A84: 74
A85: 75
A86: 76
A87: 77
A88: 78
A89: 79
A90: 80
A91: 81
A92: 82
A93: 83
A94: 84
A95: 85
A96: 86
A97: 87
A98: 88
A99: 89
A100: 90
A101: 91
A102: 92
A103: 93
A104: 94
A105: 95
A106: 96
A107: 97
A108: 98
A109: 99

Sheet (参考)ボーリング
B1: 1 | C1: =B1+1 -> 2 | D1: =C1+1 -> 3 | E1: 4 | F1: 5 | G1: 6 | H1: 7 | I1: 8 | J1: 9 | K1: 10 | L1: 11 | M1: 12 | N1: 13 | O1: 14 | P1: 15 | Q1: 16 | R1: 17 | S1: 18 | T1: 19 | U1: 20 | V1: 21 | W1: 22 | X1: 23 | Y1: 24 | AA1: =Y5+1 -> 73 | AB1: =AA1+1 -> 74 | AC1: 75 | AD1: 76 | AE1: 77 | AF1: 78 | AG1: 79 | AH1: 80 | AI1: 81 | AJ1: 82 | AK1: 83 | AL1: 84 | AM1: 85 | AN1: 86 | AO1: 87 | AP1: 88 | AQ1: 89 | AR1: 90 | AS1: 91 | AT1: 92 | AU1: 93 | AV1: 94 | AW1: 95 | AX1: 96 | AZ1: =AX5+1 -> 145 | BA1: =AZ1+1 -> 146 | BB1: 147 | BC1: 148 | BD1: 149 | BE1: 150 | BF1: 151 | BG1: 152 | BH1: 153 | BI1: 154 | BJ1: 155 | BK1: 156 | BL1: 157 | BM1: 158 | BN1: 159 | BO1: 160 | BP1: 161 | BQ1: 162 | BR1: 163 | BS1: 164 | BT1: 165 | BU1: 166 | BV1: 167
B3: =Y1+1 -> 25 | C3: =B3+1 -> 26 | D3: =C3+1 -> 27 | E3: 28 | F3: 29 | G3: 30 | H3: 31 | I3: 32 | J3: 33 | K3: 34 | L3: 35 | M3: 36 | N3: 37 | O3: 38 | P3: 39 | Q3: 40 | R3: 41 | S3: 42 | T3: 43 | U3: 44 | V3: 45 | W3: 46 | X3: 47 | Y3: 48 | AA3: =AX1+1 -> 97 | AB3: =AA3+1 -> 98 | AC3: 99 | AD3: 100 | AE3: 101 | AF3: 102 | AG3: 103 | AH3: 104 | AI3: 105 | AJ3: 106 | AK3: 107 | AL3: 108 | AM3: 109 | AN3: 110 | AO3: 111 | AP3: 112 | AQ3: 113 | AR3: 114 | AS3: 115 | AT3: 116 | AU3: 117 | AV3: 118 | AW3: 119 | AX3: 120 | AZ3: =BV1+1 -> 168 | BA3: =AZ3+1 -> 169 | BB3: 170 | BC3: 171 | BD3: 172 | BE3: 173 | BF3: 174 | BG3: 175 | BH3: 176 | BI3: 177 | BJ3: 178 | BK3: 179 | BL3: 180 | BM3: 181 | BN3: 182 | BO3: 183 | BP3: 184 | BQ3: 185 | BR3: 186 | BS3: 187 | BT3: 188 | BU3: 189 | BV3: 190
B5: =Y3+1 -> 49 | C5: =B5+1 -> 50 | D5: =C5+1 -> 51 | E5: 52 | F5: 53 | G5: 54 | H5: 55 | I5: 56 | J5: 57 | K5: 58 | L5: 59 | M5: 60 | N5: 61 | O5: 62 | P5: 63 | Q5: 64 | R5: 65 | S5: 66 | T5: 67 | U5: 68 | V5: 69 | W5: 70 | X5: 71 | Y5: 72 | AA5: =AX3+1 -> 121 | AB5: =AA5+1 -> 122 | AC5: 123 | AD5: 124 | AE5: 125 | AF5: 126 | AG5: 127 | AH5: 128 | AI5: 129 | AJ5: 130 | AK5: 131 | AL5: 132 | AM5: 133 | AN5: 134 | AO5: 135 | AP5: 136 | AQ5: 137 | AR5: 138 | AS5: 139 | AT5: 140 | AU5: 141 | AV5: 142 | AW5: 143 | AX5: 144 | AZ5: 191 | BB5: =AZ5+1 -> 192 | BD5: =BB5+1 -> 193 | BF5: =BD5+1 -> 194 | BH5: =BF5+1 -> 195 | BJ5: =BH5+1 -> 196 | BL5: =BJ5+1 -> 197 | BN5: =BL5+1 -> 198 | BP5: =BN5+1 -> 199 | BR5: =BP5+1 -> 200 | BT5: Y | BU5: N | BV5: D
AR6: 欠番
B7: フローチャート作成支援 - ©2002-2025 http://www.mansikka.info - | BV7: エクセル方眼紙設定、標準：行高＝18、行幅＝2.38
B8: 図形挿入文字欄
A9: 1 | B9: 型枠工事(建築工事) | M9: 【スリーブ入れ、フローチャート】
A10: 2 | B10: 墨出し(スリーブ径＋かぶり)
A11: 3 | B11: 配筋(建築工事)
A12: 4 | B12: 補強筋(実施者、協議)
A13: 5 | B13: 配筋切断(実施者、協議)
A14: 6 | B14: スリーブ設置
A15: 7 | B15: 確認、工事記録写真撮影
A16: 8
A17: 9 | B17: 設置当日に検査写真を提出
A18: 10 | B18: 配筋(建築工事)
A19: 11 | B19: かぶりチェック欄は×
A20: 12 | B20: 是正
A21: 13 | B21: 是正写真
A22: 14 | B22: 終了(元請け・監理者チェック)
A23: 15 | B23: 是正
A24: 16 | B24: 配筋検査(設計検査)
A25: 17 | B25: コンクリート打設(建築工事)
A26: 18
A27: 19
A28: 20
A29: 21
A30: 22
A31: 23
A32: 24
A33: 25
A34: 26
A35: 27
A36: 28
A37: 29
A38: 30
A39: 31
A40: 32
A41: 33
A42: 34
A43: 35
A44: 36
A45: 37
A46: 38
A47: 39
A48: 40
A49: 41
A50: 42
A51: 43
A52: 44
A53: 45
A54: 46
A55: 47
A56: 48
A57: 49
A58: 50
A59: 51
A60: 52
A61: 53
A62: 54
A63: 55
A64: 56
A65: 57
A66: 58
A67: 59
A68: 60
A69: 61
A70: 62
A71: 63
A72: 64
A73: 65
A74: 66
A75: 67
A76: 68
A77: 69
A78: 70
A79: 71
A80: 72
A81: 73
A82: 74
A83: 75
A84: 76
A85: 77
A86: 78
A87: 79
A88: 80
A89: 81
A90: 82
A91: 83
A92: 84
A93: 85
A94: 86
A95: 87
A96: 88
A97: 89
A98: 90
A99: 91
A100: 92
A101: 93
A102: 94
A103: 95
A104: 96
A105: 97
A106: 98
A107: 99

Sheet ShapeMapping
A1: ShapeNumber | B1: ShapeType | C1: Description | D1: HeightRatio | E1: WidthRatio | F1: 説明 | G1: このファイルはフローチャートのアイコンと連動しているので無暗に触るとマクロが動かなくなります。
A2: 1 | B2: 1 | C2: Rectangle | D2: 2 | E2: 4 | F2: 四角形
A3: 2 | B3: 2 | C3: Parallelogram | D3: 2 | E3: 4 | F3: 平行四辺形
A4: 3 | B4: 3 | C4: Trapezoid | D4: 2 | E4: 4 | F4: 台形
A5: 4 | B5: 4 | C5: Diamond | D5: 2 | E5: 4 | F5: ひし形
A6: 5 | B6: 5 | C6: RoundedRectangle | D6: 2 | E6: 4 | F6: 角丸四角形
A7: 6 | B7: 6 | C7: Octagon | D7: 4 | E7: 4 | F7: オクタゴン
A8: 7 | B8: 7 | C8: IsoscelesTriangle | D8: 4 | E8: 4 | F8: 三角形の三角形
A9: 8 | B9: 8 | C9: RightTriangle | D9: 4 | E9: 4 | F9: 右三角形
A10: 9 | B10: 9 | C10: Oval | D10: 4 | E10: 4 | F10: 楕円
A11: 10 | B11: 10 | C11: Hexagon | D11: 4 | E11: 4 | F11: 六角形
A12: 11 | B12: 11 | C12: Cross | D12: 4 | E12: 4 | F12: 交差
A13: 12 | B13: 12 | C13: RegularPentagon | D13: 4 | E13: 4 | F13: ペンタゴン
A14: 13 | B14: 13 | C14: Can | D14: 4 | E14: 4 | F14: Can
A15: 14 | B15: 14 | C15: Cube | D15: 4 | E15: 4 | F15: キューブ
A16: 15 | B16: 15 | C16: Bevel | D16: 4 | E16: 4 | F16: Bevel
A17: 16 | B17: 16 | C17: FoldedCorner | D17: 4 | E17: 4 | F17: 折り曲げコーナー
A18: 17 | B18: 17 | C18: SmileyFace | D18: 4 | E18: 4 | F18: スマイリーフェイス
A19: 18 | B19: 18 | C19: Donut | D19: 4 | E19: 4 | F19: ドーナツ
A20: 19 | B20: 19 | C20: NoSymbol | D20: 4 | E20: 4 | F20: いいえ記号
A21: 20 | B21: 20 | C21: BlockArc | D21: 4 | E21: 4 | F21: 円弧をブロックする
A22: 21 | B22: 21 | C22: Heart | D22: 4 | E22: 4 | F22: 心
A23: 22 | B23: 22 | C23: LightningBolt | D23: 4 | E23: 4 | F23: 稲妻
A24: 23 | B24: 23 | C24: Sun | D24: 4 | E24: 4 | F24: 日
A25: 24 | B25: 24 | C25: Moon | D25: 4 | E25: 4 | F25: 月
A26: 25 | B26: 25 | C26: Arc | D26: 3 | E26: 3 | F26: アーク
A27: 26 | B27: 26 | C27: DoubleBracket | D27: 2 | E27: 4 | F27: 二重角かっこ
A28: 27 | B28: 27 | C28: DoubleBrace | D28: 2 | E28: 4 | F28: 二重かっこ
A29: 28 | B29: 28 | C29: Plaque | D29: 2 | E29: 4 | F29: プラーク
A30: 29 | B30: 29 | C30: LeftBracket | D30: 2 | E30: 4 | F30: 左角かっこ
A31: 30 | B31: 30 | C31: RightBracket | D31: 2 | E31: 4 | F31: 右角かっこ
A32: 31 | B32: 31 | C32: LeftBrace | D32: 2 | E32: 4 | F32: 左かっこ
A33: 32 | B33: 32 | C33: RightBrace | D33: 2 | E33: 4 | F33: 右中かっこ
A34: 33 | B34: 33 | C34: RightArrow | D34: 2 | E34: 4 | F34: 右を指すブロック矢印
A35: 34 | B35: 34 | C35: LeftArrow | D35: 2 | E35: 4 | F35: 左を指すブロック矢印
A36: 35 | B36: 35 | C36: UpArrow | D36: 1 | E36: 2 | F36: 上を指すブロック矢印
A37: 36 | B37: 36 | C37: DownArrow | D37: 1 | E37: 2 | F37: 下向きのブロック矢印
A38: 37 | B38: 37 | C38: LeftRightArrow | D38: 1 | E38: 2 | F38: 左右の両方を指す矢印付きのブロック矢印
A39: 38 | B39: 38 | C39: UpDownArrow | D39: 2 | E39: 4 | F39: 上下を指すブロック矢印
A40: 39 | B40: 39 | C40: QuadArrow | D40: 2 | E40: 4 | F40: 上、下、左、右を指すブロック矢印
A41: 40 | B41: 40 | C41: LeftRightUpArrow | D41: 2 | E41: 4 | F41: 左、右、上を指す矢印を含むブロック矢印
A42: 41 | B42: 41 | C42: BentArrow | D42: 2 | E42: 4 | F42: 90°の曲線に続くブロック矢印。
A43: 42 | B43: 42 | C43: UTurnArrow | D43: 2 | E43: 4 | F43: U図形を形成するブロック矢印
A44: 43 | B44: 43 | C44: LeftUpArrow | D44: 2 | E44: 4 | F44: 左と上を指す矢印が付いたブロック矢印
A45: 44 | B45: 44 | C45: BentUpArrow | D45: 2 | E45: 4 | F45: 90°の鋭角線に続くブロック矢印。既定では上向きです。
A46: 45 | B46: 45 | C46: CurvedRightArrow | D46: 2 | E46: 4 | F46: 右にカーブするブロック矢印
A47: 46 | B47: 46 | C47: CurvedLeftArrow | D47: 2 | E47: 4 | F47: 左にカーブするブロック矢印
A48: 47 | B48: 47 | C48: CurvedUpArrow | D48: 2 | E48: 4 | F48: 上にカーブするブロック矢印
A49: 48 | B49: 48 | C49: CurvedDownArrow | D49: 2 | E49: 4 | F49: 下にカーブするブロック矢印
A50: 49 | B50: 49 | C50: StripedRightArrow | D50: 2 | E50: 4 | F50: 末尾にストライプが付いた右を指すブロック矢印
A51: 50 | B51: 50 | C51: NotchedRightArrow | D51: 2 | E51: 4 | F51: 右を指すノッチ付きブロック矢印
A52: 51 | B52: 51 | C52: Pentagon | D52: 2 | E52: 4 | F52: ペンタゴン
A53: 52 | B53: 52 | C53: Chevron | D53: 2 | E53: 4 | F53: Chevron
A54: 53 | B54: 53 | C54: RightArrowCallout | D54: 2 | E54: 4 | F54: 右を指す矢印を使用した吹き出し
A55: 54 | B55: 54 | C55: LeftArrowCallout | D55: 2 | E55: 4 | F55: 左を指す矢印を使用した吹き出し
A56: 55 | B56: 55 | C56: UpArrowCallout | D56: 2 | E56: 4 | F56: 上を指す矢印を使用した吹き出し
A57: 56 | B57: 56 | C57: DownArrowCallout | D57: 2 | E57: 4 | F57: 下向きの矢印を使用した吹き出し
A58: 57 | B58: 57 | C58: LeftRightArrowCallout | D58: 2 | E58: 4 | F58: 左と右の両方を指す矢印付きの吹き出し
A59: 58 | B59: 58 | C59: UpDownArrowCallout | D59: 2 | E59: 4 | F59: 上下を指す矢印を使用した吹き出し
A60: 59 | B60: 59 | C60: QuadArrowCallout | D60: 2 | E60: 4 | F60: 上、下、左、右を指す矢印を使用した吹き出し
A61: 60 | B61: 60 | C61: CircularArrow | D61: 2 | E61: 4 | F61: 曲線180度の角度に続くブロック矢印
A62: 61 | B62: 61 | C62: FlowchartProcess | D62: 2 | E62: 4 | F62: プロセスフローチャート記号
A63: 62 | B63: 62 | C63: FlowchartAlternateProcess | D63: 2 | E63: 4 | F63: 代替プロセスフローチャート記号
A64: 63 | B64: 63 | C64: FlowchartDecision | D64: 2 | E64: 4 | F64: デシジョンフローチャート記号
A65: 64 | B65: 64 | C65: FlowchartData | D65: 2 | E65: 4 | F65: データフローチャート記号
A66: 65 | B66: 65 | C66: FlowchartPredefinedProcess | D66: 2 | E66: 4 | F66: 定義済みのプロセスフローチャート記号
A67: 66 | B67: 66 | C67: FlowchartInternalStorage | D67: 2 | E67: 4 | F67: 内部ストレージフローチャート記号
A68: 67 | B68: 67 | C68: FlowchartDocument | D68: 2 | E68: 4 | F68: ドキュメントフローチャート記号
A69: 68 | B69: 68 | C69: FlowchartMultidocument | D69: 2 | E69: 4 | F69: 複数文書フローチャート記号
A70: 69 | B70: 69 | C70: FlowchartTerminator | D70: 2 | E70: 4 | F70: ターミネータフローチャート記号
A71: 70 | B71: 70 | C71: FlowchartPreparation | D71: 2 | E71: 4 | F71: 準備フローチャート記号
A72: 71 | B72: 71 | C72: FlowchartManualInput | D72: 2 | E72: 4 | F72: 手動入力フローチャート記号
A73: 72 | B73: 72 | C73: FlowchartManualOperation | D73: 2 | E73: 4 | F73: 手動操作フローチャート記号
A74: 73 | B74: 73 | C74: FlowchartConnector | D74: 4 | E74: 4 | F74: コネクタフローチャート記号
A75: 74 | B75: 74 | C75: FlowchartOffpageConnector | D75: 4 | E75: 4 | F75: オフページコネクタフローチャート記号
A76: 75 | B76: 75 | C76: FlowchartCard | D76: 4 | E76: 4 | F76: カードフローチャート記号
A77: 76 | B77: 76 | C77: FlowchartPunchedTape | D77: 4 | E77: 4 | F77: パンチテープフローチャート記号
A78: 77 | B78: 77 | C78: FlowchartSummingJunction | D78: 4 | E78: 4 | F78: 加算ジャンクションフローチャート記号
A79: 78 | B79: 78 | C79: FlowchartOr | D79: 4 | E79: 4 | F79: Orフローチャート記号
A80: 79 | B80: 79 | C80: FlowchartCollate | D80: 4 | E80: 4 | F80: フローチャート記号を照合する
A81: 80 | B81: 80 | C81: FlowchartSort | D81: 4 | E81: 4 | F81: 並べ替えフローチャート記号
A82: 81 | B82: 81 | C82: FlowchartExtract | D82: 4 | E82: 4 | F82: フローチャート記号の抽出
A83: 82 | B83: 82 | C83: FlowchartMerge | D83: 4 | E83: 4 | F83: 差し込みフローチャート記号
A84: 83 | B84: 83 | C84: FlowchartStoredData | D84: 4 | E84: 4 | F84: 格納されたデータフローチャート記号
A85: 84 | B85: 84 | C85: FlowchartDelay | D85: 4 | E85: 4 | F85: 遅延フローチャート記号
A86: 85 | B86: 85 | C86: FlowchartSequentialAccessStorage | D86: 4 | E86: 4 | F86: 順次アクセス・ストレージフローチャート記号
A87: 86 | B87: 86 | C87: FlowchartMagneticDisk | D87: 4 | E87: 4 | F87: 磁気ディスクフローチャート記号
A88: 87 | B88: 87 | C88: FlowchartDirectAccessStorage | D88: 4 | E88: 4 | F88: 直接アクセスストレージフローチャート記号
A89: 88 | B89: 88 | C89: FlowchartDisplay | D89: 4 | E89: 4 | F89: フローチャート記号を表示する
A90: 89 | B90: 89 | C90: Explosion1 | D90: 4 | E90: 4 | F90: Explosion
A91: 90 | B91: 90 | C91: Explosion2 | D91: 4 | E91: 4 | F91: Explosion
A92: 91 | B92: 91 | C92: 4pointStar | D92: 4 | E92: 4 | F92: 4点星
A93: 92 | B93: 92 | C93: 5pointStar | D93: 4 | E93: 4 | F93: 5点星
A94: 93 | B94: 93 | C94: 8pointStar | D94: 4 | E94: 4 | F94: 8点星
A95: 94 | B95: 94 | C95: 16pointStar | D95: 4 | E95: 4 | F95: 16ポイントの星
A96: 95 | B96: 95 | C96: 24pointStar | D96: 4 | E96: 4 | F96: 24ポイントの星
A97: 96 | B97: 96 | C97: 32pointStar | D97: 4 | E97: 4 | F97: 32ポイントの星
A98: 97 | B98: 97 | C98: UpRibbon | D98: 2 | E98: 4 | F98: リボンの端の上に中央の領域があるリボンバナー
A99: 98 | B99: 98 | C99: DownRibbon | D99: 2 | E99: 4 | F99: リボンの端の下に中央の領域があるリボンバナー
A100: 99 | B100: 99 | C100: CurvedUpRibbon | D100: 2 | E100: 4 | F100: 上にカーブするリボンバナー
A101: 100 | B101: 100 | C101: CurvedDownRibbon | D101: 2 | E101: 4 | F101: 下にカーブするリボンバナー
A102: 101 | B102: 101 | C102: VerticalScroll | D102: 2 | E102: 4 | F102: 垂直スクロール
A103: 102 | B103: 102 | C103: HorizontalScroll | D103: 4 | E103: 4 | F103: 水平スクロール
A104: 103 | B104: 103 | C104: Wave | D104: 4 | E104: 4 | F104: 小波
A105: 104 | B105: 104 | C105: DoubleWave | D105: 4 | E105: 4 | F105: ダブルウェーブ
A106: 105 | B106: 105 | C106: RectangularCallout | D106: 4 | E106: 4 | F106: 長方形吹き出し
A107: 106 | B107: 106 | C107: RoundedRectangularCallout | D107: 4 | E107: 4 | F107: 四角形の丸みを帯びた吹き出し
A108: 107 | B108: 107 | C108: OvalCallout | D108: 4 | E108: 4 | F108: 楕円型吹き出し
A109: 108 | B109: 108 | C109: CloudCallout | D109: 4 | E109: 4 | F109: クラウド吹き出し
A110: 109 | B110: 109 | C110: LineCallout1 | D110: 2 | E110: 4 | F110: 罫線と水平吹き出し線を使用した吹き出し
A111: 110 | B111: 110 | C111: LineCallout2 | D111: 2 | E111: 4 | F111: 斜めの直線を使用した吹き出し
A112: 111 | B112: 111 | C112: LineCallout3 | D112: 2 | E112: 4 | F112: 斜線を使用した吹き出し
A113: 112 | B113: 112 | C113: LineCallout4 | D113: 2 | E113: 4 | F113: U図形を形成する吹き出し線セグメントを含む吹き出し
A114: 113 | B114: 113 | C114: LineCallout1AccentBar | D114: 2 | E114: 4 | F114: 水平アクセントバーを使用した吹き出し
A115: 114 | B115: 114 | C115: LineCallout2AccentBar | D115: 2 | E115: 4 | F115: 斜め吹き出し線とアクセントバーを使用した吹き出し
A116: 115 | B116: 115 | C116: LineCallout3AccentBar | D116: 2 | E116: 4 | F116: 角度付き吹き出し線とアクセントバーを使用した吹き出し
A117: 116 | B117: 116 | C117: LineCallout4AccentBar | D117: 2 | E117: 4 | F117: U図形を形成するアクセントバーと吹き出し線セグメントを含む吹き出し
A118: 117 | B118: 117 | C118: LineCallout1NoBorder | D118: 2 | E118: 4 | F118: 水平線を使用した吹き出し
A119: 118 | B119: 118 | C119: LineCallout2NoBorder | D119: 2 | E119: 4 | F119: 罫線のない吹き出し線と対角線付き吹き出し線
A120: 119 | B120: 119 | C120: LineCallout3NoBorder | D120: 2 | E120: 4 | F120: 罫線と角度付き吹き出し線のない吹き出し
A121: 120 | B121: 120 | C121: LineCallout4NoBorder | D121: 2 | E121: 4 | F121: U図形を形成する罫線セグメントと吹き出し線セグメントのない吹き出し
A122: 121 | B122: 121 | C122: LineCallout1BorderandAccentBar | D122: 2 | E122: 4 | F122: 罫線と水平方向のアクセントバーを使用した吹き出し
A123: 122 | B123: 122 | C123: LineCallout2BorderandAccentBar | D123: 2 | E123: 4 | F123: 罫線、対角線、アクセントバーを使用した吹き出し
A124: 123 | B124: 123 | C124: LineCallout3BorderandAccentBar | D124: 2 | E124: 4 | F124: 罫線、角度付き吹き出し線、アクセントバーを含む吹き出し
A125: 124 | B125: 124 | C125: LineCallout4BorderandAccentBar | D125: 2 | E125: 4 | F125: U図形を形成する罫線、アクセントバー、吹き出し線セグメントを含む吹き出し
A126: 125 | B126: 125 | C126: ActionButtonCustom | D126: 2 | E126: 4 | F126: 既定の画像またはテキストのないボタン。マウスクリックおよびマウスオーバー動作をサポートします。
A127: 126 | B127: 126 | C127: ActionButtonHome | D127: 2 | E127: 2 | F127: [ ホーム]ボタン。マウスクリックおよびマウスオーバー動作をサポートします。
A128: 127 | B128: 127 | C128: ActionButtonHelp | D128: 2 | E128: 2 | F128: [ ヘルプ]ボタン。マウスクリックおよびマウスオーバー動作をサポートします。
A129: 128 | B129: 128 | C129: ActionButtonInformation | D129: 2 | E129: 2 | F129: [ 情報]ボタン。マウスクリックおよびマウスオーバー動作をサポートします。
A130: 129 | B130: 129 | C130: ActionButtonBackorPrevious | D130: 1 | E130: 1 | F130: [ 戻る]または[ 前へ]ボタン。マウスクリックおよびマウスオーバー動作をサポートします。
A131: 130 | B131: 130 | C131: ActionButtonForwardorNext | D131: 1 | E131: 1 | F131: [ 進む]または[ 次へ]ボタン。マウスクリックおよびマウスオーバー動作をサポートします。
A132: 131 | B132: 131 | C132: ActionButtonBeginning | D132: 1 | E132: 1 | F132: [ 上旬]ボタン。マウスクリックおよびマウスオーバー動作をサポートします。
A133: 132 | B133: 132 | C133: ActionButtonEnd | D133: 1 | E133: 1 | F133: [ 終了]ボタン。マウスクリックおよびマウスオーバー動作をサポートします。
A134: 133 | B134: 133 | C134: ActionButtonReturn | D134: 2 | E134: 2 | F134: [ 戻る]ボタン。マウスクリックおよびマウスオーバー動作をサポートします。
A135: 134 | B135: 134 | C135: ActionButtonDocument | D135: 2 | E135: 4 | F135: [ 文書]ボタン。マウスクリックおよびマウスオーバー動作をサポートします。
A136: 135 | B136: 135 | C136: ActionButtonSound | D136: 2 | E136: 4 | F136: [ サウンド]ボタン。マウスクリックおよびマウスオーバー動作をサポートします。
A137: 136 | B137: 136 | C137: ActionButtonMovie | D137: 2 | E137: 4 | F137: [ ビデオ]ボタン。マウスクリックおよびマウスオーバー動作をサポートします。
A138: 137 | B138: 137 | C138: Balloon | D138: 2 | E138: 4 | F138: 風船
A139: 138 | B139: 138 | C139: NotPrimitive | D139: 2 | E139: 4 | F139: 非サポート
A140: 139 | B140: 139 | C140: FlowchartOfflineStorage | D140: 4 | E140: 4 | F140: オフラインストレージフローチャート記号
A141: 140 | B141: 140 | C141: LeftRightRibbon | D141: 2 | E141: 8 | F141: 両端に矢印が付いたリボン
A142: 141 | B142: 141 | C142: DiagonalStripe | D142: 2 | E142: 4 | F142: 2つの三角形の図形が削除された四角形。対角線
A143: 142 | B143: 142 | C143: Pie | D143: 4 | E143: 4 | F143: 一部が欠落している円('pie')
A144: 143 | B144: 143 | C144: NonIsoscelesTrapezoid | D144: 4 | E144: 4 | F144: 非対称非平行辺を持つ台形
A145: 144 | B145: 144 | C145: Decagon | D145: 4 | E145: 4 | F145: デカゴン
A146: 145 | B146: 145 | C146: Heptagon | D146: 4 | E146: 4 | F146: Heptagon
A147: 146 | B147: 146 | C147: Dodecagon | D147: 4 | E147: 4 | F147: 12角形。
A148: 147 | B148: 147 | C148: 6pointStar | D148: 4 | E148: 4 | F148: 6点星
A149: 148 | B149: 148 | C149: 7pointStar | D149: 4 | E149: 4 | F149: 7点星
A150: 149 | B150: 149 | C150: 10pointStar | D150: 4 | E150: 4 | F150: 10ポイントの星
A151: 150 | B151: 150 | C151: 12pointStar | D151: 4 | E151: 4 | F151: 12ポイントの星
A152: 151 | B152: 151 | C152: Round1Rectangle | D152: 4 | E152: 4 | F152: 角を丸めた四角形
A153: 152 | B153: 152 | C153: Round2SameRectangle | D153: 4 | E153: 4 | F153: 辺を共有する角が2角の四角形
A154: 153 | B154: 153 | C154: SnipRoundRectangle | D154: 4 | E154: 4 | F154: 1つの角が切り取られ、角が丸い四角形
A155: 154 | B155: 154 | C155: Snip1Rectangle | D155: 4 | E155: 4 | F155: 1つの角が切り取られた四角形
A156: 155 | B156: 155 | C156: Snip2SameRectangle | D156: 4 | E156: 4 | F156: 辺を共有する2つの角が切り取られた四角形
A157: 156 | B157: 156 | C157: Round2DiagRectangle | D157: 4 | E157: 4 | F157: 2つの角を丸めた四角形(対角線付き)
A158: 157 | B158: 157 | C158: Snip2DiagRectangle | D158: 4 | E158: 4 | F158: 斜め対向する2つの角を持つ四角形
A159: 158 | B159: 158 | C159: Frame | D159: 4 | E159: 4 | F159: 長方形の額縁
A160: 159 | B160: 159 | C160: HalfFrame | D160: 4 | E160: 4 | F160: 長方形の額縁の半分
A161: 160 | B161: 160 | C161: Tear | D161: 4 | E161: 4 | F161: 水滴
A162: 161 | B162: 161 | C162: Chord | D162: 4 | E162: 4 | F162: 円の内側を通って境界上の2つのポイントを結ぶ線を持つ円。和音を持つ円
A163: 162 | B163: 162 | C163: Corner | D163: 4 | E163: 4 | F163: 四角形の欠落部分がある四角形。
A164: 163 | B164: 163 | C164: MathPlus | D164: 2 | E164: 2 | F164: 加算記号 +
A165: 164 | B165: 164 | C165: MathMinus | D165: 2 | E165: 2 | F165: 減算記号 -
A166: 165 | B166: 165 | C166: MathMultiply | D166: 2 | E166: 2 | F166: 乗算記号 x
A167: 166 | B167: 166 | C167: MathDivide | D167: 2 | E167: 2 | F167: 除算記号 ÷
A168: 167 | B168: 167 | C168: MathEqual | D168: 2 | E168: 2 | F168: 等価記号 =
A169: 168 | B169: 168 | C169: MathNotEqual | D169: 2 | E169: 2 | F169: 非等価記号 ≠
A170: 169 | B170: 169 | C170: CornerTabs | D170: 2 | E170: 4 | F170: 四角形の形に沿って配置された4つの直角三角形。4つの切り取られた角部分。
A171: 170 | B171: 170 | C171: SquareTabs | D171: 2 | E171: 4 | F171: 四角形の図形を定義する4つの小さな四角形
A172: 171 | B172: 171 | C172: PlaqueTabs | D172: 2 | E172: 4 | F172: 四角形の図形を定義する4つの四分円
A173: 172 | B173: 172 | C173: Gear6 | D173: 4 | E173: 4 | F173: 6本の歯を持つギア
A174: 173 | B174: 173 | C174: Gear9 | D174: 4 | E174: 4 | F174: 歯が9個ある歯車。
A175: 174 | B175: 174 | C175: Funnel | D175: 4 | E175: 4 | F175: 漏斗
A176: 175 | B176: 175 | C176: PieWedge | D176: 4 | E176: 4 | F176: 円形図形の4分の1
A177: 176 | B177: 176 | C177: LeftCircularArrow | D177: 4 | E177: 4 | F177: 反時計回りを指す円形の矢印
A178: 177 | B178: 177 | C178: LeftRightCircularArrow | D178: 4 | E178: 4 | F178: 時計回りと反時計回りを指す円形の矢印。両端にポイントがある曲線矢印
A179: 178 | B179: 178 | C179: SwooshArrow | D179: 4 | E179: 4 | F179: 曲線矢印
A180: 179 | B180: 179 | C180: Cloud | D180: 4 | E180: 4 | F180: クラウドシェイプ
A181: 180 | B181: 180 | C181: ChartX | D181: 2 | E181: 4 | F181: 対角線に沿って4つの部分に分割された正方形
A182: 181 | B182: 181 | C182: ChartStar | D182: 2 | E182: 4 | F182: 垂直線と対角線に沿って6つの部分に分割された正方形
A183: 182 | B183: 182 | C183: ChartPlus | D183: 2 | E183: 4 | F183: 四角形を垂直方向と水平方向に4四分の4に分割
A184: 183 | B184: 183 | C184: LineInverse | D184: 2 | E184: 4 | F184: 線の逆数
A185: 184 | B185: 184 | C185: ConnectorStraight | D185: 2 | E185: 4
A186: 185 | B186: 185 | C186: ConnectorStraight | D186: 2 | E186: 4
A187: 186 | B187: 186 | C187: ConnectorStraight | D187: 2 | E187: 4
A188: 187 | B188: 187 | C188: ConnectorStraight | D188: 2 | E188: 4
A189: 188 | B189: 188 | C189: ConnectorElbow | D189: 4 | E189: 2
A190: 189 | B190: 189 | C190: ConnectorElbow | D190: 4 | E190: 2
